Cogmind - Beta 14 @@@ ROGUE MODE // 2024.10.07 @ 01:27:59 Player: Angler Result: Destroyed by DAS Turret with DAS Cannon Performance ------------- Evolutions (0) 0 Regions Visited (3) 600 Robots Destroyed (30) 150 Value Destroyed (692) 692 Prototype IDs (27) 540 Alien Tech Used (0) 0 Bonus (300) 300 TOTAL SCORE: 2282 Bonus ------- Aligned with FarCom 300 Cogmind --------- Core Integrity 0/250 Matter 210/300 Energy 250/250 System Corruption 7% Temperature Cool (0) Movement Walking (190) Ox1 Location -10/Exiles Parts ------- > --- POWER (1) -------- Ion Engine > --- PROPULSION (2) --- Aluminum Leg Aluminum Leg > --- UTILITY (2) ------ Large Storage Unit Light Armor Plating > --- WEAPON (2) ------- Light EM Pulse Cannon Assault Rifle > --- INVENTORY (15) --- Ion Engine Medium Battery (150) High-capacity Battery (250) Medium Matter Pod (100) Medium Matter Pod (100) Medium Matter Pod (100) Large Matter Pod (51) Structural Scanner 0b10 Alert Chip Targeting Computer Targeting Computer Targeting Computer ECM Suite ECM Suite ECM Suite Peak State ------------ > --- POWER ------------ Ion Engine > --- PROPULSION ------- Aluminum Leg Aluminum Leg > --- UTILITY ---------- Large Storage Unit Structural Scanner > --- WEAPON ----------- Light EM Pulse Cannon Light EM Pulse Cannon > --- INVENTORY -------- Medium Battery High-capacity Battery Medium Matter Pod Medium Matter Pod Medium Matter Pod Medium Matter Pod Targeting Computer Targeting Computer Targeting Computer Targeting Computer Targeting Computer Targeting Computer ECM Suite ECM Suite ECM Suite [Rating: 10] Favorites ----------- Power Ion Engine Engine Ion Engine Propulsion Aluminum Leg Leg Aluminum Leg Wheel Wheel Utility Large Storage Unit Device Structural Scanner Storage Large Storage Unit Protection Light Armor Plating Weapon Light EM Pulse Cannon Energy Gun Small Laser Energy Cannon Light EM Pulse Cannon Ballistic Gun Assault Rifle Build | -11 -10 -10 -10 ------- Run | Yrd Mat Min Exi Slots Evolved . | . . . . Power . | . . . . Propulsion . | . . . . Utility . | . . . . Weapon . | . . . . Parts Attached 36 | 6 25 5 . Power 5 | 2 3 . . Engine 5 | 2 3 . . Core . | . . . . Reactor . | . . . . Propulsion 15 | 2 11 2 . Treads . | . . . . Leg 8 | . 6 2 . Wheel 7 | 2 5 . . Hover . | . . . . Flight . | . . . . Utility 9 | . 7 2 . Device 6 | . 5 1 . Storage 1 | . 1 . . Processor . | . . . . Hackware . | . . . . Protection 2 | . 1 1 . Artifact . | . . . . Weapon 7 | 2 4 1 . Energy Gun 1 | . 1 . . Energy Cannon 2 | . 2 . . Ballistic Gun 4 | 2 1 1 . Ballistic Cannon . | . . . . Launcher . | . . . . Special Weapon . | . . . . Impact Weapon . | . . . . Slashing Weapon . | . . . . Piercing Weapon . | . . . . Special Melee Weapon . | . . . . Unidentified Prototypes . | . . . . Parts Lost 2 | . 2 . . Power . | . . . . Propulsion 1 | . 1 . . Utility . | . . . . Weapon 1 | . 1 . . Highest Loss Streak 2 | . 2 . . To Critical Strikes . | . . . . Average Slot Usage (%) 98 | . 97 100 100 Engine 14 | . 14 14 14 Leg 26 | . 24 28 28 Wheel 1 | . 2 . . Device 5 | . 9 4 . Storage 13 | . 13 14 14 Protection 8 | . 5 9 14 Energy Cannon 14 | . 12 18 14 Ballistic Gun 12 | . 13 9 14 Peak Build Rating 10 | 5 10 10 10 Average Rating 8 | 3 8 9 9 On Entrance 6 | . 5 10 9 Naked Turns . | . . . . Heaviest Build 36 | 8 36 36 34 Greatest Support 20 | 20 20 20 20 Greatest Overweight (x) 2 | . 2 1 1 Average Overweight (x) . | . . 1 1 Largest Inventory Capacity 15 | 5 15 15 15 Average Capacity 14 | 5 14 15 15 Most Carried 15 | 4 15 15 15 Average Carried 14 | 2 14 14 14 Final Capacity 15 | 5 15 15 15 Final Carried 15 | 4 15 15 15 Class Distribution -------------------- 93% | Mutant 6% | Scavenger-Mutant Dominant Class ---------------- Mutant | -10/Materials Mutant | -10/Mines Mutant | -10/Exiles Resources | -11 -10 -10 -10 ----------- Run | Yrd Mat Min Exi Matter Collected 1361 | 272 941 148 . Remotely . | . . . . Salvage Created 1158 | 32 1020 106 . Parts 78 | 1 67 10 . Haulers Intercepted 2 | . 2 . . Recyclers Shooed 6 | . 6 . . Parts Field Recycled . | . . . . Retrieved Matter . | . . . . Parts Self-Destructed . | . . . . Prevented . | . . . . Kills | -11 -10 -10 -10 ------- Run | Yrd Mat Min Exi Combat Hostiles Destroyed 21 | 1 18 2 . Guns 12 | 1 11 . . Cannons 8 | . 6 2 . Classes Destroyed 6 | 1 5 . . Builder 3 | . 2 1 . Hauler 2 | . 2 . . Recycler 2 | . 2 . . Watcher 2 | . 2 . . Swarmer 6 | . 6 . . Grunt 15 | 1 12 2 . Best Kill Streak 5 | 1 5 2 . Combat Bots Only 4 | 1 4 2 . Max Kills in Single Turn 1 | 1 1 1 . Gunslinging . | . . . . Exploded . | . . . . Melee . | . . . . Uniques/NPCs Destroyed . | . . . . Combat | -11 -10 -10 -10 -------- Run | Yrd Mat Min Exi Hostile Shots Fired 95 | 3 78 5 9 Missed 26 | 1 24 1 . Damage Taken 988 | 21 727 72 168 Core 261 | . 154 17 90 Absorbed by Shields . | . . . . Core Remaining (%) 100 | 100 . . . Volleys Fired 97 | 3 89 4 1 Largest 2 | 2 2 2 2 Hottest 112 | 40 112 112 76 Shots Fired 185 | 6 167 9 3 Gun 141 | 6 133 . 2 Cannon 44 | . 34 9 1 Launcher . | . . . . Special . | . . . . Kinetic 132 | 6 124 . 2 Thermal 9 | . 9 . . Explosive . | . . . . Electromagnetic 44 | . 34 9 1 Robot Hit Streak 11 | 2 11 3 . Robot Miss Streak 5 | 1 5 2 1 Penetration Max . | . . . . Secondary Targets 4 | . 4 . . Max Gunslinging Chain 1 | . 1 . . Shots Hit Robots 101 | 4 92 5 . Core Hits 46 | 2 40 4 . Critical Kills . | . . . . Critical Parts Destroyed . | . . . . Critical Strikes . | . . . . Melee Attacks . | . . . . Impact . | . . . . Slashing . | . . . . Piercing . | . . . . Sneak Attacks . | . . . . Combat Hostiles . | . . . . Follow-up Attacks . | . . . . Damage Inflicted 1498 | 43 1316 139 . Guns 789 | 43 746 . . Cannons 709 | . 570 139 . Explosions . | . . . . Melee . | . . . . Ramming . | . . . . Kinetic 720 | 43 677 . . Thermal 69 | . 69 . . Explosive . | . . . . Electromagnetic 709 | . 570 139 . Impact . | . . . . Slashing . | . . . . Piercing . | . . . . Highest Corruption 7 | . 7 7 7 Average Corruption 5 | . 4 7 7 Corruption Purged . | . . . . Corruption Blocked . | . . . . Effects 89 | . 42 18 29 Message Errors 18 | . 7 3 8 Matter Fused 26 | . 11 5 10 Heat Flow Errors 12 | . 7 1 4 Energy Discharges 10 | . 6 3 1 Data Loss (minor) 11 | . 4 4 3 Data Loss (major) 4 | . 3 . 1 Misfires 4 | . 2 1 1 Alerts 3 | . 1 1 1 Weapon Failures 1 | . 1 . . Overload Shots . | . . . . Overflow Damage . | . . . . Projectiles . | . . . . Explosions . | . . . . Melee . | . . . . Knockbacks . | . . . . Impact . | . . . . Kinetic . | . . . . Secondary . | . . . . Self-Inflicted Damage . | . . . . Shots . | . . . . Rammed . | . . . . Targets Rammed . | . . . . Kicked . | . . . . Crushed . | . . . . Highest Temperature 477 | 12 477 268 232 Average Temperature 113 | 9 118 109 92 Received Heat Transfer 375 | 12 330 33 . Effects 6 | . 5 . 1 Shutdowns 2 | . 2 . . Energy Bleed 1 | . . . 1 Interference 3 | . 3 . . Siege Activations . | . . . . Robots Corrupted 1 | . 1 . . Combat Hostiles 1 | . 1 . . Parts Fried 4 | . 3 1 . Impact Corruptions . | . . . . Robots Melted . | . . . . Combat Hostiles . | . . . . Parts Melted . | . . . . Heat Transferred 150 | . 150 . . Parts Sabotaged . | . . . . Parts Stolen . | . . . . Parts Stripped . | . . . . Power Chain Reactions . | . . . . Alert | -11 -10 -10 -10 ------- Run | Yrd Mat Min Exi Peak Influence 190 | 20 190 99 . Initial 49 | . 13 49 . Average 74 | 2 82 57 . Maximum Alert Level . | . . . . Low Security (%) 100 | 100 100 100 . Level 1 . | . . . . Level 2 . | . . . . Level 3 . | . . . . Level 4 . | . . . . Level 5 . | . . . . High Security . | . . . . Max Security . | . . . . Squads Dispatched 4 | . 4 . . Investigation 4 | . 4 . . Extermination . | . . . . Reinforcement . | . . . . Assault . | . . . . Garrison . | . . . . Intercept . | . . . . Searches Triggered . | . . . . Construction Impeded . | . . . . Haulers Reinforced . | . . . . Active Scanning Responses . | . . . . Cargo Convoy Interrupts . | . . . . Stealth | -11 -10 -10 -10 --------- Run | Yrd Mat Min Exi Distress Signals . | . . . . Communications Jammed . | . . . . Distress Signals . | . . . . Times Spotted 35 | 1 31 2 1 Peak Tracking Total 9 | 1 4 2 9 Tactical Retreats 1 | . 1 . . Traps | -11 -10 -10 -10 ------- Run | Yrd Mat Min Exi Traps Triggered 6 | . 6 . . Indirectly . | . . . . Trap Hack Attempts . | . . . . Triggered . | . . . . Disarmed . | . . . . Reprogrammed . | . . . . Reused . | . . . . Traps Extracted . | . . . . Installed . | . . . . Triggered . | . . . . Machines | -11 -10 -10 -10 ---------- Run | Yrd Mat Min Exi Machines Disabled 2 | . 2 . . Max in Single Turn 1 | . 1 . . Machines Repaired . | . . . . Machines Dismantled . | . . . . Machines Sabotaged . | . . . . Overloaded Fab Kills . | . . . . Hacking | -11 -10 -10 -10 --------- Run | Yrd Mat Min Exi Machines Accessed 15 | . 9 1 5 Terminals 8 | . 8 . . Fabricators . | . . . . Repair Stations . | . . . . Recycling Units 1 | . 1 . . Scanalyzers . | . . . . Garrison Access . | . . . . Total Hacks 87 | . 36 1 50 Successful 74 | . 23 1 50 Failed 13 | . 13 . . Catastrophic 1 | . 1 . . Database Lockouts . | . . . . Manual 18 | . 17 . 1 Terminals 33 | . 33 . . Fabricators . | . . . . Repair Stations . | . . . . Recycling Units 3 | . 3 . . Scanalyzers . | . . . . Garrison Access . | . . . . Terminal Hacks 66 | . 15 1 50 Record 55 | . 6 . 49 Robot Analysis 3 | . 3 . . Prototype ID Bank 3 | . 3 . . Open Door 1 | . . 1 . Unreport Threat 1 | . 1 . . Locate Traps 2 | . 2 . . Derelict Proto ID Bank 1 | . . . 1 Fabricator Hacks . | . . . . Repair Station Hacks . | . . . . Recycling Unit Hacks 2 | . 2 . . Report Inventory 1 | . 1 . . Retrieve Components 1 | . 1 . . Scanalyzer . | . . . . Garrison Access Hacks . | . . . . Unauthorized Hacks 6 | . 6 . . Terminals 6 | . 6 . . Botnet 6 | . 6 . . Fabricators . | . . . . Repair Stations . | . . . . Recycling Units . | . . . . Scanalyzers . | . . . . Garrison Access . | . . . . Data Cores Recovered . | . . . . Used . | . . . . Hacking Detections 9 | . 9 . . Full Trace Events 9 | . 9 . . Feedback Events 1 | . 1 . . Corruption 1 | . 1 . . Feedback Blocked . | . . . . Robot Schematics Acquired . | . . . . Robots Built . | . . . . Authchips . | . . . . Time . | . . . . Total Robot Build Rating . | . . . . Part Schematics Acquired . | . . . . Parts Built . | . . . . Authchips . | . . . . Time . | . . . . Total Part Build Rating . | . . . . Parts Repaired . | . . . . Time . | . . . . Parts Recycled . | . . . . Recycled Matter . | . . . . Retrieved Matter . | . . . . Retrieved Components 10 | . 10 . . Parts Scanalyzed . | . . . . Part Schematics Acquired . | . . . . Parts Damaged . | . . . . Bothacking | -11 -10 -10 -10 ------------ Run | Yrd Mat Min Exi Used RIF Installer . | . . . . Robots Hacked . | . . . . Non-combat . | . . . . Combat . | . . . . Robot Hacks Applied . | . . . . Relay Couplers Released . | . . . . Fabnet Peak Effective % . | . . . . Robots Rewired . | . . . . Allies Hacked . | . . . . Hacks Repelled . | . . . . Allies | -11 -10 -10 -10 -------- Run | Yrd Mat Min Exi Total Allies 2 | . . 2 . Largest Group 2 | . . 2 2 Highest-Rated Group 53 | . . 53 53 Highest-Rated Ally 31 | . . 31 31 Total Orders . | . . . . Ally Attacks . | . . . . Total Damage . | . . . . Kills . | . . . . Allies Corrupted . | . . . . Allies Melted . | . . . . Intel | -11 -10 -10 -10 ------- Run | Yrd Mat Min Exi Robot Analysis Total 3 | . 3 . . Derelict Logs Recovered 1 | . . 1 . Drone Launches . | . . . . Drone Recoveries . | . . . . Exploration | -11 -10 -10 -10 ------------- Run | Yrd Mat Min Exi Turns Passed 3812 | 61 2064 650 1037 Spaces Moved 1887 | 57 961 326 543 Core 17 | 17 . . . Treads . | . . . . Legs 1714 | . 845 326 543 Wheels 156 | 40 116 . . Hover . | . . . . Flight . | . . . . Fastest Speed 50 | 50 80 190 190 Average Speed 181 | 71 180 190 190 Slowest Speed 260 | 80 260 190 190 Overloaded Moves . | . . . . Propulsion Burnouts . | . . . . Robots Hopped . | . . . . Cave-ins Triggered . | . . . . Exploration Rate (%) 64 | 8 92 65 92 Regions Visited 3 Branch Regions 2 Pre-discovered Areas 2 | . . 1 1 Known Exits Taken . | . . . . Unknown Exits Taken 3 | 1 1 1 . Scrap Searched 1 | . . 1 . Spaces Dug . | . . . . Terrain Destroyed . | . . . . Melee . | . . . . Projectile . | . . . . AOE . | . . . . Terrain Rammed . | . . . . Walls Destroyed . | . . . . Machines Disabled . | . . . . Actions | -11 -10 -10 -10 --------- Run | Yrd Mat Min Exi Total 2106 | 69 1142 349 546 Wait 37 | . 26 11 . Move 1884 | 56 960 325 543 Hop . | . . . . Pick Up 28 | 4 22 1 1 Fast Attach 8 | 4 4 . . Attach 1 | 1 . . . Detach . | . . . . Swap 27 | 1 21 5 . Drop 24 | . 20 3 1 Fire 97 | 3 89 4 1 Melee . | . . . . Ram . | . . . . Kick . | . . . . Crush . | . . . . Escape Stasis . | . . . . Rewire . | . . . . Trap . | . . . . Miscellaneous . | . . . . Route ------- -11/Scrapyard -10/Materials (discovered 5 exits: [*Mat x3] / *Min x2) -10/Mines -10/Exiles (discovered 2 exits: [*Min x2]) History --------- Turn | Location | Event 2 | -11/Scrapyard | Met Revision 17 44 | -11/Scrapyard | Discovered new exit (range 8) 62 | -11/Scrapyard | Entered Materials 302 | -10/Materials | Build established: Mutant 326 | -10/Materials | Discovered new exit (range 9) 586 | -10/Materials | Discovered new exit (range 15) 1108 | -10/Materials | Discovered new exit (range 7) 1174 | -10/Materials | Discovered new exit (range 11) 1396 | -10/Materials | Core integrity fell below 50% 1925 | -10/Materials | Discovered new exit (range 14) 2126 | -10/Materials | Entered Mines 2390 | -10/Mines | Met a Derelict who couldn't figure out how to use a Trap Extractor 2429 | -10/Mines | Deemed a non-threat by the Exiles lab entrance 2429 | -10/Mines | Discovered new exit (range 5) 2776 | -10/Mines | Entered Exiles 2776 | -10/Exiles | Accompanied by 2 allies 2806 | -10/Exiles | Led the pair of lost Derelicts to a safe place 2808 | -10/Exiles | Discovered new exit (range 14) 2857 | -10/Exiles | Met 8R-AWN 2899 | -10/Exiles | Met EX-HEX 2966 | -10/Exiles | Met EX-BIN 2992 | -10/Exiles | Aligned with FarCom system 2994 | -10/Exiles | Given EX-Vault access code 3061 | -10/Exiles | Opened EX-Vault 3071 | -10/Exiles | Found 0b10 Alert Chip 3129 | -10/Exiles | Warned to stay clear of 0b10 Research branches 3178 | -10/Exiles | Met EX-DEC 3265 | -10/Exiles | Learned location of Zion (-7) 3345 | -10/Exiles | Discovered new exit (range 14) 3572 | -10/Exiles | Visited The Gauntlet 3810 | -10/Exiles | Attacked by the Exiles 3813 | -10/Exiles | Destroyed by DAS Turret with DAS Cannon Last Messages --------------- I probably said something like that last time, but hopefully no one remembers what really happened. 03688_ System corrupted: Matter fused (-7). AM-PHS: That's RA-1N3's workstation, which we keep unoccupied as a tribute. RA-1N3 was always up for doing crazy stuff, the only one brave enough to try out the Chronowheel, only to never be seen again. 03724_ System corrupted: Matter fused (-8). 03743_ VJ9